fUSD/lending_fUSD_20241209
["ID","MTS","AMOUNT","RATE_DAILY","PERIOD"]
[344730343,1733751037942,-9915.1,0.000125,2]
[344730344,1733751037961,-5941.31623622,0.000125,2]
[344730345,1733751037979,-1629.905,0.000125,2]
[344730346,1733751038195,-198389.39146485,0.000125,2]
[344730386,1733751040006,-838.68893181,0.000125,2]
[344730387,1733751040021,-738.51,0.000125,2]
[344730388,1733751040101,-3618.84052829,0.000125,2]
[344730389,1733751040112,-775.12544834,0.000125,2]
[344730390,1733751040123,-274.95,0.000125,2]
[344730391,1733751040135,-8565.32059837,0.000125,2]
[344730397,1733751040714,-8971.38093797,0.000125,2]
[344730398,1733751040731,-6127.69199676,0.000125,2]
[344730399,1733751040744,-460.7799242,0.000125,2]
[344730400,1733751040756,-311.07917754,0.000125,2]
[344730404,1733751043318,-2697.17970122,0.000125,2]
[344730405,1733751043330,-50130.70468253,0.000125,2]
[344730406,1733751043342,-22962.09038652,0.000125,2]
[344730407,1733751043661,-4584.2756899,0.000125,2]
[344730408,1733751043675,-20568.0,0.000125,2]
[344730409,1733751043686,-10896.70262312,0.000125,2]
[344730410,1733751043704,-10382.49380567,0.000125,2]
[344730411,1733751043715,-62853.4989456,0.000125,2]
[344730412,1733751043789,-8122.86670669,0.000125,2]
[344730415,1733751045990,-25362.95291,0.000125,2]
[344730416,1733751046002,-286.91526706,0.000125,2]
[344730417,1733751046015,-531.3099999,0.000125,2]
[344730418,1733751046074,-689.10926538,0.000125,2]
[344730419,1733751046085,-2425.36401,0.000125,2]
[344730420,1733751046096,-345.06,0.000125,2]
[344730421,1733751046219,-7317.0,0.000125,2]
[344730422,1733751046301,-1747.8,0.000125,2]
[344730423,1733751046312,-557.6099985,0.000125,2]
[344730424,1733751046323,-262.37280043,0.000125,2]
[344730429,1733751099689,4097.50684219,0.00019,120]
[344730431,1733751171545,10000.0,0.000188,120]
[344730432,1733751199651,10000.0,0.000188,120]
[344730433,1733751212078,10000.0,0.000188,120]
[344730435,1733751304679,151.0,0.00015,30]
[344730436,1733751305001,151.0,0.00015,30]
[344730440,1733751577691,594645.87238548,0.0001,2]
[344730441,1733751604675,151.0,0.00015,30]
[344730442,1733751605076,151.0,0.00015,30]
[344730443,1733751605921,151.0,0.00015,30]
[344730453,1733751904480,151.0,0.00015,30]
[344730454,1733751905015,151.0,0.00015,30]
[344730470,1733752136441,12836.3785024,0.00015,30]
[344730474,1733752203890,152.0,0.00015,30]
[344730476,1733752232134,-1064.93,0.00010123,2]
[344730477,1733752232146,-657.19928017,0.00010724,2]
[344730478,1733752232161,-163.16044119,0.00010924,2]
[344730479,1733752232172,-150.0,0.00011373,2]
[344730480,1733752232184,-520.0,0.00011474,2]
[344730481,1733752232196,-2334.15,0.00011507,2]
[344730482,1733752232210,-150.0,0.00011582,2]
[344730483,1733752232222,-250.0,0.00011658,2]
[344730484,1733752232234,-300.0,0.00011663,2]
[344730485,1733752232245,-1000.0,0.00011664,2]
[344730486,1733752232257,-250.0,0.00011664,2]
[344730487,1733752232271,-572.66,0.00011664,2]
[344730488,1733752232283,-438.344,0.0001188,2]
[344730489,1733752232295,-500.0,0.00012027,2]
[344730490,1733752232306,-300.0,0.00012058,2]
[344730491,1733752232318,-2810.33,0.00012092,2]
[344730492,1733752232329,-428.04992712,0.00012191,2]
[344730493,1733752232340,-166.8,0.00012192,2]
[344730494,1733752232352,-596.3301,0.000123,2]
[344730495,1733752232363,-264.5113,0.000123,2]
[344730496,1733752232375,-2569.131,0.00012349,2]
[344730497,1733752232386,-176.655,0.00012349,2]
[344730498,1733752232397,-22962.73,0.0001235,2]
[344730499,1733752232410,-3000.0,0.0001237,2]
[344730500,1733752232422,-35983.0,0.00012375,2]
[344730501,1733752232433,-1064.93,0.00012387,2]
[344730502,1733752232445,-150.0,0.00012399,2]
[344730503,1733752232456,-31759.6731,0.000124,2]
[344730504,1733752232467,-18920.439,0.000124,2]
[344730505,1733752232479,-26798.175,0.000124,2]
[344730506,1733752232490,-4037.8534689,0.000124,2]
[344730507,1733752232502,-3038.71357121,0.00012499,2]
[344730508,1733752232513,-1133908.97168505,0.00012499,2]
[344730509,1733752232524,-50930.80652832,0.00012499,2]
[344730510,1733752232535,-811200.2,0.000125,5]
[344730511,1733752232547,-2738709.50871357,0.000125,2]
[344730512,1733752232676,-24509.4021845,0.000125,2]
[344730513,1733752232689,-649.32687009,0.000125,2]
[344730514,1733752232708,-2854.27963723,0.000125,2]
[344730515,1733752232721,-559.92586736,0.000125,2]
[344730516,1733752232735,-4639.8345921,0.000125,2]
[344730517,1733752232748,-1254.8752648,0.000125,2]
[344730518,1733752232761,-271.065,0.000125,2]
[344730519,1733752232774,-1896.25546839,0.000125,2]
[344730520,1733752232817,-1399.2,0.000125,2]
[344730523,1733752238139,-4157.18889504,0.000125,2]
[344730524,1733752238151,-12259.904,0.000125,2]
[344730525,1733752238163,-516.5699999,0.000125,2]
[344730526,1733752238319,-10172.794544,0.000125,2]
[344730535,1733752240170,-399.04804998,0.000125,2]
[344730536,1733752240181,-4584.54033085,0.000125,2]
[344730537,1733752240206,-568.62496208,0.000125,2]
[344730538,1733752240217,-1602.4,0.000125,2]
[344730539,1733752240325,-3904.24594074,0.000125,2]
[344730540,1733752240336,-8537.3604539,0.000125,2]
[344730550,1733752243273,-737344.8928059,0.000125,2]
[344730551,1733752243381,-494.14,0.000125,2]
[344730552,1733752243483,-2876.62715245,0.000125,2]
[344730553,1733752243496,-949.37207143,0.000125,2]
[344730554,1733752243507,-4874.77634,0.000125,2]
[344730555,1733752243524,-3409.58017713,0.000125,2]
[344730556,1733752243597,-4700.94670943,0.000125,2]
[344730557,1733752243609,-1290.81734706,0.000125,2]
[344730569,1733752246127,-5076.99234502,0.000125,2]
[344730571,1733752246139,-41266.36800001,0.000125,2]
[344730573,1733752246229,-3891.63358,0.000125,2]
[344730574,1733752246240,-1828.433986,0.000125,2]
[344730575,1733752246346,-975.31146814,0.000125,2]
[344730576,1733752246525,-9389.89362107,0.000125,2]
[344730577,1733752259098,-5902.49315781,0.00019,120]
[344730578,1733752505628,152.0,0.00015,30]
[344730601,1733752803989,152.0,0.00015,30]
[344730615,1733753104172,152.18856685,0.00015,30]
[344730623,1733753258007,29989.08480766,0.00019,120]
[344730647,1733753432349,-558.94,0.00010294,2]
[344730649,1733753432359,-680.96108276,0.00010294,2]
[344730650,1733753432376,-288.81891724,0.00010294,2]
[344730651,1733753432386,-631.82413402,0.00011617,2]
[344730652,1733753432395,-631.82413402,0.0001171,2]
[344730653,1733753432404,-231.62702251,0.00011717,2]
[344730654,1733753432415,-54.70297749,0.00011717,2]
[344730655,1733753432426,-150.0,0.0001181,2]
[344730656,1733753432438,-429.145,0.0001188,2]
[344730657,1733753432447,-247.23877785,0.00011946,2]
[344730658,1733753432485,-752.76122215,0.00011946,2]
[344730659,1733753432495,-584.0,0.00011952,2]
[344730660,1733753432504,-150.0,0.00012148,2]
[344730661,1733753432517,-250.0,0.00012148,2]
[344730662,1733753432527,-428.04992712,0.00012325,2]
[344730663,1733753432536,-478.58344571,0.0001237,2]
[344730664,1733753432612,-2521.41655429,0.0001237,2]
[344730665,1733753432621,-336.0,0.00012384,2]
[344730666,1733753432631,-300.0,0.00012399,2]
[344730667,1733753432640,-2500.0,0.000124,2]
[344730668,1733753432649,-2359.269,0.000124,2]
[344730669,1733753432659,-176.656,0.000124,2]
[344730670,1733753432668,-1086.14794319,0.000124,2]
[344730671,1733753432721,-1327.99280985,0.000124,2]
[344730674,1733753432732,-360.04704331,0.000124,2]
[344730676,1733753432741,-205.0398233,0.0001249,5]
[344730678,1733753432753,-4979.05563204,0.0001249,5]
[344730680,1733753432762,-150.0,0.00012496,2]
[344730681,1733753432772,-3010.07928243,0.00012497,2]
[344730682,1733753432783,-17170.5,0.00012497,2]
[344730683,1733753432794,-12616.0,0.00012497,2]
[344730686,1733753438235,-38779.50721154,0.00012497,2]
[344730687,1733753438245,-993.922,0.00012499,2]
[344730689,1733753438254,-60454.79021818,0.000125,2]
[344730690,1733753438269,-8738.61600217,0.000125,2]
[344730691,1733753438282,-488.07420995,0.000125,2]
[344730692,1733753438292,-782.2744295,0.000125,2]
[344730693,1733753438377,-582.66173904,0.000125,2]
[344730694,1733753438389,-920.67643739,0.000125,2]
[344730695,1733753438401,-302.5407008,0.000125,2]
[344730696,1733753438491,-1644.15559557,0.000125,2]
[344730697,1733753438503,-990.62027751,0.000125,2]
[344730698,1733753438530,-6201.39405935,0.000125,2]
[344730699,1733753438857,-607.88714895,0.000125,2]
[344730700,1733753438868,-538.2334,0.000125,2]
[344730708,1733753440418,-334.78795263,0.000125,2]
[344730709,1733753440604,-20951.21802715,0.000125,2]
[344730710,1733753440616,-19821.2,0.000125,2]
[344730711,1733753440631,-1170.15070772,0.000125,2]
[344730712,1733753440658,-1000.0,0.000125,2]
[344730713,1733753440669,-15146.86001233,0.000125,2]
[344730714,1733753440680,-56977.2,0.000125,2]
[344730715,1733753440788,-799.4,0.000125,2]
[344730716,1733753440799,-554.32815012,0.000125,2]
[344730732,1733753443434,-3720.36914733,0.000124,2]
[344730733,1733753443448,-420.06491761,0.000125,2]
[344730734,1733753443551,-17215.54976901,0.000125,2]
[344730735,1733753443563,-58568.99999995,0.000125,2]
[344730736,1733753443662,-3287.58253677,0.000125,2]
[344730737,1733753443674,-5742.77673809,0.000125,2]
[344730738,1733753443695,-344.652,0.000125,2]
[344730739,1733753443706,-6087.0,0.000125,2]
[344730740,1733753443718,-6225.0,0.000125,2]
[344730742,1733753443813,-24628.09494,0.000125,2]
[344730743,1733753443826,-2403.11264309,0.000125,2]
[344730744,1733753443840,-532.78310425,0.000125,2]
[344730774,1733753444266,-1212.63233627,0.000125,2]
[344730777,1733753444279,-3198.92,0.000125,2]
[344730953,1733753446334,-3201.72053682,0.000125,2]
[344730954,1733753446629,-1359.474,0.000125,2]
[344730955,1733753446670,-99199.99999999,0.000125,2]
[344730958,1733753446945,-65.8806211,0.000125,2]
[344730966,1733753870001,-949.42,0.00010235,2]
[344730967,1733753870023,-370.0,0.00010668,2]
[344730968,1733753870045,-150.739695,0.000111,6]
[344730969,1733753870068,-150.739695,0.0001116,6]
[344730970,1733753870089,-150.0,0.00011787,2]
[344730971,1733753870111,-432.522,0.0001188,2]
[344730972,1733753870132,-150.739695,0.00012165,2]
[344730973,1733753870154,-1000.0,0.000123,2]
[344730974,1733753870175,-150.0,0.00012399,2]
[344730975,1733753870196,-300.0,0.00012399,2]
[344730976,1733753870220,-300.0,0.00012399,2]
[344730977,1733753870242,-2500.0,0.000124,2]
[344730978,1733753870263,-590.838915,0.000124,2]
[344730982,1733753978572,1704.28845675,0.00015,30]
[344730983,1733753978598,3000.0,0.00015,30]
[344730991,1733754308945,2991191.59165342,0.0001,2]
[344731001,1733754382077,5000.0,0.00019,120]
[344731002,1733754391920,1194.88192352,9e-05,2]
[344731003,1733754427528,98524.73409527,9.8e-05,2]
[344731004,1733754483577,24978.68770706,0.0001,2]
[344731017,1733754631597,-300.0,0.00010873,2]
[344731018,1733754631606,-4204.7214,0.00010874,3]
[344731019,1733754631716,-6865.75023366,0.00010874,3]
[344731020,1733754631726,-500.0,0.00011369,2]
[344731021,1733754631736,-222.87,0.00011391,2]
[344731022,1733754631746,-150.0,0.00011396,2]
[344731023,1733754631756,-4149.70702687,0.00011531,2]
[344731024,1733754631768,-372.9696363,0.00011531,2]
[344731025,1733754631968,-674.82333683,0.00011531,2]
[344731026,1733754631978,-168.03,0.0001172,2]
[344731027,1733754631987,-1000.0,0.00011746,2]
[344731028,1733754631997,-250.0,0.00011844,2]
[344731029,1733754632007,-431.254,0.0001188,2]
[344731030,1733754632016,-1000.0,0.000119,4]
[344731031,1733754632026,-2100.0,0.00012,4]
[344731032,1733754632035,-532.8,0.00012012,2]
[344731033,1733754632044,-3100.0,0.000121,4]
[344731034,1733754632054,-6592.0,0.00012128,2]
[344731035,1733754632066,-4200.0,0.000122,4]
[344731036,1733754632076,-428.04992712,0.00012261,2]
[344731038,1733754632085,-5300.0,0.000123,4]
[344731040,1733754632095,-150.0,0.00012312,2]
[344731042,1733754632105,-15922.9823243,0.00012313,2]
[344731044,1733754632114,-20000.0,0.00012346,3]
[344731046,1733754632123,-3000.0,0.0001237,2]
[344731048,1733754632132,-899.0,0.00012399,2]
[344731050,1733754632142,-1892.20880759,0.00012399,2]
[344731052,1733754632151,-1892.20880756,0.00012399,2]
[344731054,1733754632160,-467.1082,0.00012399,2]
[344731056,1733754632169,-1892.20880756,0.00012399,2]
[344731058,1733754632179,-1892.20880756,0.00012399,2]
[344731060,1733754632188,-1892.20880756,0.00012399,2]
[344731062,1733754632197,-1892.20880756,0.000124,2]
[344731064,1733754632206,-1892.20880756,0.000124,2]
[344731066,1733754632215,-1892.20880756,0.000124,2]
[344731068,1733754632224,-1892.20880756,0.000124,2]
[344731070,1733754632234,-10000.0,0.000124,2]
[344731072,1733754632244,-10000.0,0.000124,4]
[344731074,1733754632253,-10000.0,0.000124,3]
[344731075,1733754632262,-10000.0,0.000124,5]
[344731078,1733754632271,-10000.0,0.000124,6]
[344731079,1733754632281,-735.0,0.000124,6]
[344731081,1733754632290,-516.74260128,0.000124,2]
[344731083,1733754632299,-516.74260128,0.000124,2]
[344731085,1733754632309,-1000.0,0.000124,4]
[344731087,1733754632323,-1250.94608539,0.000124,2]
[344731089,1733754632332,-1892.20880756,0.000124,2]
[344731090,1733754632341,-14605.1486667,0.00012497,3]
[344731091,1733754632350,-3967.29181042,0.00012498,2]
[344731092,1733754632360,-949.42,0.00012499,2]
[344731093,1733754632370,-10996.92,0.000125,5]
[344731094,1733754632379,-9916.08180599,0.000125,2]
[344731100,1733754637657,-328.29398976,0.00012473,2]
[344731101,1733754637751,-172.33068701,0.00012473,2]
[344731102,1733754637760,-198.25524294,0.000125,2]
[344731103,1733754637772,-28409.36106208,0.000125,2]
[344731104,1733754637782,-25704.86502692,0.000125,2]
[344731108,1733754639527,-5620.0,0.000125,2]
[344731109,1733754639746,-293.39253344,0.000125,2]
[344731110,1733754639759,-8748.78999302,0.000125,2]
[344731111,1733754639771,-87120.4189076,0.000125,2]
[344731112,1733754639783,-367.03000001,0.000125,2]
[344731121,1733754642611,-412.9099,0.000124,2]
[344731122,1733754642620,-5576.09321136,0.000125,2]
[344731123,1733754642631,-3170.02359999,0.000125,2]
[344731124,1733754642642,-4708.59105696,0.000125,2]
[344731125,1733754642653,-10254.38508579,0.000125,2]
[344731126,1733754642663,-7446.825,0.000125,2]
[344731127,1733754642798,-2175.88480547,0.000125,2]
[344731128,1733754642812,-3933.55078253,0.000125,2]
[344731129,1733754642824,-1213.45,0.000125,2]
[344731139,1733754643222,-3519.94681148,0.000125,2]
[344731140,1733754643234,-39783.8088,0.000125,2]
[344731141,1733754643245,-39999.7256313,0.000125,2]
[344731142,1733754645643,-11306.2445,0.000125,2]
[344731143,1733754645654,-17481.96150377,0.000125,2]
[344731144,1733754645699,-19331.5365359,0.000125,2]
[344731145,1733754712471,864.29,9.397e-05,2]
[344731153,1733754903488,164.0,9.397e-05,30]
[344731164,1733755203118,165.0,9.397e-05,30]
[344731165,1733755229769,284.38951938,9.35e-05,2]
[344731167,1733755503327,165.0,9.397e-05,30]
[344731183,1733755614529,830.9,9.292e-05,2]
[344731184,1733755639225,1000.0,0.00019,120]
[344731193,1733755802815,165.0,9.397e-05,30]
[344731211,1733755831959,-825.26294824,0.00011,2]
[344731212,1733755832159,-426.24,0.00011084,2]
[344731213,1733755832169,-150.0,0.00011171,2]
[344731214,1733755832179,-1852.42,0.00011218,2]
[344731215,1733755832191,-912.4478463,0.00011222,2]
[344731216,1733755832201,-161.73,0.00011322,2]
[344731217,1733755832210,-222.87,0.00011322,2]
[344731218,1733755832220,-1006.44,0.00011406,2]
[344731219,1733755832231,-23890.0,0.00011407,2]
[344731220,1733755832243,-250.0,0.00011474,2]
[344731221,1733755832253,-386.21,0.00011528,2]
[344731222,1733755832263,-166.84,0.00011546,2]
[344731223,1733755832274,-830.9,0.00011556,2]
[344731224,1733755832283,-250.0,0.00011616,2]
[344731225,1733755832293,-1847.39,0.00011643,2]
[344731226,1733755832303,-1000.0,0.00011695,2]
[344731227,1733755832313,-150.0,0.00011762,2]
[344731228,1733755832324,-200.0,0.000118,2]
[344731229,1733755832333,-442.245,0.0001188,2]
[344731230,1733755832343,-1574.0,0.00011886,2]
[344731231,1733755832353,-200.0,0.00011896,2]
[344731232,1733755832363,-150.739695,0.00011925,2]
[344731233,1733755832373,-1000.0,0.00012,12]
[344731234,1733755832382,-573.76,0.0001213,2]
[344731235,1733755832392,-150.739695,0.0001215,2]
[344731236,1733755832401,-428.04992712,0.00012266,2]
[344731237,1733755832411,-435.74,0.000123,2]
[344731238,1733755832421,-3000.0,0.0001237,2]
[344731239,1733755832432,-2500.0,0.00012399,2]
[344731240,1733755832446,-981.8709,0.00012399,2]
[344731241,1733755832456,-156.36826067,0.00012399,2]
[344731242,1733755832466,-176.65638395,0.000124,2]
[344731243,1733755832476,-2195.644,0.000124,2]
[344731244,1733755832486,-150.0,0.000124,2]
[344731245,1733755832495,-156.36826067,0.000124,2]
[344731246,1733755832505,-426.24,0.0001247,2]
[344731247,1733755832515,-517.24202313,0.00012473,2]
[344731248,1733755832525,-653.54262325,0.00012498,2]
[344731249,1733755832535,-92952.33918762,0.00012499,2]
[344731250,1733755832544,-86882.12424905,0.00012499,2]
[344731251,1733755832557,-727.73994594,0.00012499,2]
[344731252,1733755832568,-6000.01694321,0.00012499,2]
[344731253,1733755832581,-2056.0,0.00012499,2]
[344731254,1733755832592,-710.52211214,0.00012499,2]
[344731255,1733755832604,-22371.16664202,0.00012499,2]
[344731256,1733755832618,-2263.34844389,0.00012499,2]
[344731257,1733755832630,-49961.03574094,0.00012499,2]
[344731258,1733755832678,-620.54312121,0.00012499,2]
[344731259,1733755832696,-825.9337799,0.00012499,2]
[344731260,1733755832708,-6363.4842967,0.00012499,2]
[344731262,1733755837602,-7694.754465,0.00012499,2]
[344731264,1733755837783,-515.28705452,0.00012499,2]
[344731265,1733755837795,-766.34341095,0.00012499,2]
[344731266,1733755837806,-959.72468447,0.00012499,2]
[344731267,1733755837818,-1317155.39800874,0.00012499,2]
[344731268,1733755837827,-20000.0,0.00012499,2]
[344731269,1733755837836,-3782936.0009091,0.00012499,2]
[344731270,1733755837846,-57464223.36901299,0.000125,2]
[344731271,1733755837855,-14000.0,0.000125,2]
[344731272,1733755837865,-2000.0,0.000125,2]
[344731273,1733755837874,-13681325.53418617,0.000125,2]
[344731274,1733755837886,-326.45,0.000125,2]
[344731275,1733755837897,-359.18045954,0.000125,2]
[344731276,1733755837909,-8291.87465296,0.000125,2]
[344731277,1733755837920,-736.57390145,0.000125,2]
[344731278,1733755837931,-618.90086075,0.000125,2]
[344731279,1733755837946,-442.25,0.000125,2]
[344731280,1733755837957,-528.69395831,0.000125,2]
[344731281,1733755837969,-8695.33159424,0.000125,2]
[344731282,1733755837980,-1347.68440084,0.000125,2]
[344731283,1733755837992,-435.13973861,0.000125,2]
[344731284,1733755838005,-500.0,0.000125,2]
[344731290,1733755839912,-253.176226,0.000125,2]
[344731291,1733755839928,-2791.77,0.000125,2]
[344731292,1733755839968,-985.07995557,0.000125,2]
[344731293,1733755839984,-1451.88350013,0.000125,2]
[344731294,1733755840143,-1003.97133725,0.000125,2]
[344731295,1733755840157,-1179.325,0.000125,2]
[344731296,1733755842301,-472.47205656,0.000125,2]
[344731297,1733755842313,-6233.04296507,0.000125,2]
[344731298,1733755842325,-1493.39758088,0.000125,2]
[344731299,1733755842338,-585.73479625,0.000125,2]
[344731300,1733755842349,-272.11880001,0.000125,2]
[344731303,1733755842819,-3943.48545402,0.000125,2]
[344731304,1733755842830,-6134.68861293,0.000125,2]
[344731308,1733755843072,-14451.93083421,0.000125,2]
[344731309,1733755843084,-37758.10898439,0.000125,2]
[344731310,1733755843101,-4876.5375,0.000125,2]
[344731311,1733755843316,-274532.4085216,0.000125,2]
[344731312,1733755843330,-75117.99924,0.000125,2]
[344731313,1733755843341,-2272.17796821,0.000125,2]
[344731314,1733755843352,-3005.10600096,0.000125,2]
[344731365,1733755845638,-501649.43179763,0.000125,2]
[344731366,1733755845670,-988.18290304,0.000125,2]
[344731367,1733755845682,-26818.72952599,0.000125,2]
[344731368,1733755845783,-660.51501,0.000125,2]
[344731369,1733755845797,-3201.72053682,0.000125,2]
[344731370,1733755845991,-1114.5476,0.000125,2]
[344731397,1733755871248,287.11,0.0001,2]
[344731401,1733755926803,1000.8942,0.0001,2]
[344731403,1733756103180,165.21375864,0.0001,30]
[344731433,1733756777633,855.48,9.151e-05,2]
[344731440,1733757031902,-358.35358244,0.00011094,2]
[344731441,1733757031961,-11.64641756,0.00011094,2]
[344731442,1733757031971,-1000.0,0.00011108,2]
[344731443,1733757031980,-187.18,0.0001115,2]
[344731444,1733757031990,-1582.74356444,0.0001115,2]
[344731445,1733757032025,-172.83643556,0.0001115,2]
[344731446,1733757032035,-150.0,0.00011179,2]
[344731447,1733757032050,-1094.42,0.00011184,2]
[344731448,1733757032059,-593.54,0.00011184,2]
[344731449,1733757032069,-744.25,0.00011207,2]
[344731450,1733757032078,-1088.28,0.00011249,2]
[344731451,1733757032087,-1116.69,0.0001129,2]
[344731452,1733757032096,-3394.22,0.00011322,2]
[344731453,1733757032106,-150.0,0.00011327,2]
[344731454,1733757032116,-250.0,0.00011355,2]
[344731455,1733757032126,-157.37,0.00011378,2]
[344731456,1733757032136,-475.13791981,0.00011415,2]
[344731457,1733757032147,-380.34208019,0.00011415,2]
[344731458,1733757032157,-150.0,0.00011428,2]
[344731459,1733757032166,-462.66,0.00011429,2]
[344731460,1733757032176,-19080.99791981,0.00011429,2]
[344731461,1733757032187,-476.41853281,0.00011429,2]
[344731462,1733757032199,-10442.57354738,0.00011429,2]
[344731463,1733757032209,-29999.99,0.00011429,2]
[344731464,1733757032219,-9999.99,0.00011429,2]
[344731465,1733757032228,-1123.11,0.00011429,2]
[344731466,1733757032238,-250.0,0.00011445,2]
[344731467,1733757032247,-168.12,0.00011474,2]
[344731468,1733757032257,-2723.67,0.00011586,2]
[344731469,1733757032277,-618.0,0.00011648,2]
[344731470,1733757032288,-2833.49,0.0001178,2]
[344731471,1733757032297,-200.0,0.00011791,2]
[344731472,1733757032306,-434.036,0.0001188,2]
[344731474,1733757032316,-400.0,0.00012,4]
[344731476,1733757032325,-900.0,0.000121,4]
[344731477,1733757032335,-435.34,0.00012192,2]
[344731478,1733757032344,-435.34,0.00012192,2]
[344731479,1733757032354,-435.34,0.00012192,2]
[344731480,1733757032364,-435.34,0.00012192,2]
[344731481,1733757032374,-1400.0,0.000122,4]
[344731482,1733757032384,-428.04992712,0.00012204,2]
[344731483,1733757032393,-2751.0,0.00012243,2]
[344731484,1733757032403,-2965.1,0.00012243,2]
[344731485,1733757032412,-300.0,0.00012252,2]
[344731486,1733757032421,-1800.0,0.000123,4]
[344731487,1733757032431,-600.2822,0.00012397,2]
[344731488,1733757032440,-1000.0,0.00012399,2]
[344731490,1733757032450,-1004.0872745,0.00012399,2]
[344731491,1733757032459,-1004.08727441,0.00012399,2]
[344731492,1733757032469,-1004.08727441,0.00012399,2]
[344731493,1733757032479,-1004.08727441,0.00012399,2]
[344731494,1733757032489,-1004.08727441,0.00012399,2]
[344731496,1733757032498,-1004.08727441,0.000124,2]
[344731497,1733757032507,-1004.08727441,0.000124,2]
[344731498,1733757032529,-1004.08727441,0.000124,2]
[344731499,1733757032539,-1004.08727441,0.000124,2]
[344731500,1733757032548,-7565.1738,0.000124,2]
[344731502,1733757032558,-150.0,0.000124,2]
[344731504,1733757032567,-1000.0,0.000124,2]
[344731506,1733757032577,-1000.0,0.000124,2]
[344731508,1733757032589,-1000.0,0.000124,2]
[344731510,1733757032605,-1000.0,0.000124,2]
[344731512,1733757032615,-1000.0,0.000124,3]
[344731514,1733757032624,-1000.0,0.000124,3]
[344731516,1733757032635,-1000.0,0.000124,3]
[344731518,1733757032644,-1000.0,0.000124,3]
[344731520,1733757032654,-1000.0,0.000124,2]
[344731522,1733757032663,-1000.0,0.000124,2]
[344731524,1733757032674,-1000.0,0.000124,2]
[344731526,1733757032685,-1000.0,0.000124,2]
[344731528,1733757032694,-1000.0,0.000124,2]
[344731530,1733757032704,-1315.0,0.000124,2]
[344731532,1733757032713,-1000.0,0.000124,3]
[344731534,1733757032723,-1000.0,0.000124,4]
[344731536,1733757032733,-1000.0,0.000124,5]
[344731538,1733757032742,-1000.0,0.000124,6]
[344731540,1733757032752,-1000.0,0.000124,2]
[344731542,1733757032771,-1000.0,0.000124,2]
[344731544,1733757032782,-1000.0,0.000124,2]
[344731546,1733757032791,-500.0,0.000124,2]
[344731548,1733757032801,-1000.0,0.000124,2]
[344731551,1733757032810,-634.0,0.000124,3]
[344731553,1733757032820,-1000.0,0.000124,3]
[344731555,1733757032829,-1000.0,0.000124,3]
[344731557,1733757032838,-1000.0,0.000124,2]
[344731559,1733757032847,-1000.0,0.000124,2]
[344731561,1733757032856,-1000.0,0.000124,2]
[344731563,1733757032865,-2300.0,0.000124,4]
[344731565,1733757032875,-1004.08727441,0.000124,2]
[344731567,1733757032884,-406.35904057,0.000124,2]
[344731569,1733757032893,-406.35904042,0.000124,2]
[344731571,1733757032905,-500.0,0.0001242,3]
[344731573,1733757032915,-500.0,0.0001246,4]
[344731575,1733757032924,-170.21492612,0.0001247,10]
[344731577,1733757032933,-500.0,0.00012473,2]
[344731579,1733757032943,-500.0,0.00012473,2]
[344731581,1733757032952,-162.49635136,0.00012473,2]
[344731583,1733757032961,-333.56746404,0.00012473,2]
[344731585,1733757032970,-500.0,0.00012473,2]
[344731587,1733757032980,-500.0,0.0001248,5]